bitfinex/quotes_SOLUSD_20260115
["timestamp","ask_amount","ask_price","bid_price","bid_amount"]
[1768457625953,0.70667884,144.38,144.33,7.04846838]
[1768457626121,0.70667884,144.36,144.32,12.73999998]
[1768457626445,0.70667884,144.36,144.33,0.11999998]
[1768457627252,0.64667885,144.36,144.33,0.11999998]
[1768457628443,2.57425523,144.38,144.34,0.17999997]
[1768457629323,0.70667884,144.37,144.34,0.17999997]
[1768457630546,0.70667884,144.37,144.33,7.10840289]
[1768457631849,0.70667884,144.37,144.33,9.68265812]
[1768457633350,0.70667884,144.37,144.33,0.17999997]
[1768457634931,0.70667884,144.37,144.33,4.20690906]
[1768457640564,0.70667884,144.37,144.33,11.13535442]
[1768457643767,0.65672467,144.38,144.34,0.17999997]
[1768457643971,0.65672467,144.38,144.35,0.17999997]
[1768457644758,0.65672467,144.38,144.35,4.20690906]
[1768457645148,0.65672467,144.38,144.35,4.02690909]
[1768457645565,0.65672467,144.38,144.34,11.13493709]
[1768457647448,0.65672467,144.38,144.34,7.108028]
[1768457647647,0.65672467,144.38,144.34,11.13493709]
[1768457649256,0.65672467,144.37,144.33,11.13529115]
[1768457650158,0.65672467,144.36,144.32,16.64690909]
[1768457650351,0.65672467,144.36,144.32,16.82690906]
[1768457652482,0.65672467,144.39,144.35,0.17999997]
[1768457652665,0.65672467,144.39,144.35,4.20690906]
[1768457653588,0.65672467,144.38,144.35,4.20690906]
[1768457654584,0.65672467,144.38,144.35,0.17999997]
[1768457654960,0.65672467,144.38,144.34,11.13480972]
[1768457655464,0.65672467,144.38,144.35,0.17999997]
[1768457656284,0.65672467,144.38,144.34,11.13480972]
[1768457659286,0.65672467,144.38,144.35,4.02690909]
[1768457660087,0.65672467,144.38,144.34,4.20690906]
[1768457661287,0.69239318,144.37,144.33,6.92840658]
[1768457661475,0.69239318,144.37,144.33,11.13531564]
[1768457661780,0.69239318,144.37,144.34,4.02690909]
[1768457662583,0.69239318,144.37,144.33,4.20690906]
[1768457662885,0.70254253,144.38,144.35,4.20690906]
[1768457665567,0.70254253,144.38,144.35,0.17999997]
[1768457665867,0.70254253,144.38,144.35,4.20690906]
[1768457667602,0.70254253,144.39,144.36,4.02690909]
[1768457667898,0.70254253,144.39,144.35,11.13449341]
[1768457669389,0.70254253,144.4,144.36,7.10701131]
[1768457669609,0.70254253,144.4,144.38,4.02690909]
[1768457670169,0.70254253,144.4,144.36,7.10701131]
[1768457670498,0.70254253,144.4,144.36,4.20690906]
[1768457670989,0.70254253,144.4,144.36,0.17999997]
[1768457671288,0.70254253,144.4,144.38,4.02690909]
[1768457671486,0.70254253,144.4,144.37,4.02690909]
[1768457673087,0.70254253,144.4,144.36,4.20690906]
[1768457675805,0.70254253,144.4,144.36,4.02690909]
[1768457678582,0.70254253,144.4,144.36,4.20690906]
[1768457680201,0.70254253,144.4,144.37,0.17999997]
[1768457680411,0.70254253,144.41,144.38,4.20690906]
[1768457680797,0.64254254,144.41,144.38,4.20690906]
[1768457681204,0.64254254,144.41,144.38,0.17999997]
[1768457681506,0.64254254,144.41,144.38,4.20690906]
[1768457681910,0.58254255,144.41,144.39,4.02690909]
[1768457682806,0.52254256,144.41,144.39,4.02690909]
[1768457683407,0.46254257,144.41,144.39,4.02690909]
[1768457684206,0.46254257,144.41,144.38,0.17999997]
[1768457684510,0.46254257,144.41,144.39,4.02690909]
[1768457684687,4.02690909,144.46,144.4,4.02690909]
[1768457685308,0.70254253,144.45,144.4,4.02690909]
[1768457685689,0.70254253,144.44,144.41,4.02690909]
[1768457692316,0.70254253,144.44,144.4,0.41999993]
[1768457692701,0.70254253,144.44,144.41,4.02690909]
[1768457693521,0.66438241,144.43,144.41,4.02690909]
[1768457693924,0.66438241,144.43,144.36,0.41999993]
[1768457693925,0.66438241,144.41,144.36,0.41999993]
[1768457694115,0.66438241,144.39,144.36,0.41999993]
[1768457696024,0.66438241,144.39,144.35,2.99633111]
[1768457697223,0.66438241,144.39,144.36,2.99633111]
[1768457697521,0.66438241,144.41,144.38,2.57633118]
[1768457697720,0.66438241,144.41,144.37,2.57633118]
[1768457699319,0.66438241,144.4,144.37,2.57633118]
[1768457699626,0.66438241,144.4,144.37,2.99633111]
[1768457700523,7.58965186,144.4,144.37,0.41999993]
[1768457701926,0.66438241,144.4,144.37,0.41999993]
[1768457704027,0.66438241,144.4,144.37,2.99633111]
[1768457704218,0.66438241,144.4,144.37,0.41999993]
[1768457705429,115.72,144.46,144.4,0.68578836]
[1768457705430,6.92281066,144.45,144.4,0.68578836]
[1768457705629,3.60853931,144.51,144.44,3.26211954]
[1768457705931,7.02103878,144.49,144.44,0.68578836]
[1768457706112,9.59736996,144.49,144.44,0.68578836]
[1768457706307,7.02103878,144.49,144.43,3.26211954]
[1768457706514,9.59736996,144.49,144.43,3.26211954]
[1768457707029,24.32327422,144.49,144.44,2.57633118]
[1768457707230,26.8996054,144.49,144.43,3.26211954]
[1768457707432,0.66438241,144.48,144.43,3.26211954]
[1768457707934,0.66438241,144.47,144.43,3.26211954]
[1768457708609,0.66438241,144.47,144.43,0.68578836]
[1768457708932,0.66438241,144.47,144.43,3.26211954]
[1768457710329,0.66438241,144.47,144.44,2.57633118]
[1768457710742,7.58631239,144.47,144.44,2.57633118]
[1768457710909,0.66438241,144.46,144.44,2.57633118]
[1768457711402,0.66438241,144.46,144.43,3.26211954]
[1768457713029,0.66438241,144.46,144.43,0.68578836]
[1768457713331,0.66438241,144.46,144.43,3.26211954]
[1768457713839,0.66438241,144.43,144.35,0.68578836]
[1768457714044,12.62,144.45,144.36,0.68578836]
[1768457714045,0.66438241,144.41,144.36,0.68578836]
[1768457714328,0.66438241,144.41,144.34,2.57633118]
[1768457714329,0.66438241,144.44,144.39,0.68578836]
[1768457714630,19.5424345,144.46,144.4,2.57633118]
[1768457714631,0.66438241,144.43,144.4,2.57633118]
[1768457714831,0.66438241,144.43,144.39,0.68578836]
[1768457715230,0.66438241,144.43,144.39,3.26211954]
[1768457715536,0.66438241,144.43,144.39,0.68578836]
[1768457715720,0.66438241,144.45,144.42,0.68578836]
[1768457716207,7.58707114,144.46,144.43,2.57633118]
[1768457716409,7.58707114,144.46,144.42,3.26211954]
[1768457716831,0.66438241,144.45,144.42,3.26211954]
[1768457717331,0.66438241,144.45,144.42,0.68578836]
[1768457717533,0.66438241,144.45,144.42,3.26211954]
[1768457718106,0.66438241,144.45,144.42,0.68578836]
[1768457718309,0.66438241,144.44,144.41,3.26211954]
[1768457718931,0.66438241,144.44,144.42,2.57633118]
[1768457719525,0.66438241,144.45,144.42,3.26211954]
[1768457722630,0.66438241,144.45,144.42,0.68578836]
[1768457723031,0.68210517,144.44,144.4,0.65917281]
[1768457723225,0.68210517,144.43,144.4,3.23550399]
[1768457723829,0.68210517,144.43,144.4,0.65917281]
[1768457724035,0.68210517,144.43,144.4,3.23550399]
[1768457726041,0.68210517,144.43,144.4,0.65917281]
[1768457726216,0.68210517,144.43,144.4,3.23550399]
[1768457728336,0.68210517,144.44,144.4,0.65917281]
[1768457728637,0.68210517,144.44,144.4,3.23550399]
[1768457729243,0.68210517,144.44,144.4,0.65917281]
[1768457729447,0.68210517,144.43,144.4,3.23550399]
[1768457731943,0.68210517,144.44,144.41,2.57633118]
[1768457732439,0.68210517,144.44,144.4,0.65917281]
[1768457732644,0.68210517,144.43,144.4,3.23550399]
[1768457733630,0.68210517,144.46,144.43,0.65917281]
[1768457733844,0.68210517,144.46,144.43,3.23550399]
[1768457735837,0.68210517,144.48,144.45,0.65917281]
[1768457736039,0.68210517,144.48,144.44,3.23550399]
[1768457736548,0.68210517,144.48,144.44,0.65917281]
[1768457736846,0.68210517,144.48,144.44,3.23550399]
[1768457737953,0.68210517,144.47,144.44,3.23550399]
[1768457738952,0.68210517,144.47,144.44,0.65917281]
[1768457739253,0.68210517,144.47,144.44,3.23550399]
[1768457739447,0.68210517,144.47,144.44,0.65917281]
[1768457739750,0.68210517,144.47,144.44,3.23550399]
[1768457740624,0.68210517,144.47,144.44,0.65917281]
[1768457742854,0.68210517,144.46,144.42,0.65917281]
[1768457743935,0.68210517,144.44,144.41,0.65917281]
[1768457744253,0.68210517,144.45,144.41,0.65917281]
[1768457744828,0.68210517,144.44,144.4,13.27917281]
[1768457745142,0.68210517,144.44,144.41,0.65917281]
[1768457747658,0.68210517,144.45,144.42,0.65917281]
[1768457747872,0.68210517,144.45,144.42,3.23550399]
[1768457748362,0.68210517,144.47,144.43,3.23550399]
[1768457748971,0.68210517,144.47,144.43,0.65917281]
[1768457749454,0.68210517,144.46,144.43,0.65917281]
[1768457750160,0.68210517,144.46,144.42,3.23550399]
[1768457750662,0.68401428,144.45,144.42,0.65917281]
[1768457752269,0.68401428,144.45,144.42,3.23550399]
[1768457753065,19.88037147,144.48,144.43,3.27687891]
[1768457753066,0.68401428,144.48,144.43,3.27687891]
[1768457753258,0.1,144.49,144.45,0.70054773]
[1768457753439,0.68401428,144.53,144.49,0.70054773]
[1768457753765,0.78401428,144.54,144.5,3.27687891]
[1768457753963,0.78401428,144.54,144.5,0.70054773]
[1768457754462,0.68401428,144.53,144.47,0.70054773]
[1768457754662,0.68401428,144.53,144.49,2.57633118]
[1768457755160,0.68401428,144.53,144.44,29.9281906]
[1768457755364,0.68401428,144.53,144.5,0.70054773]
[1768457755579,0.68401428,144.53,144.49,4.01836744]
[1768457756053,0.68401428,144.53,144.48,0.70054773]
[1768457756247,0.68401428,144.52,144.48,0.70054773]
[1768457756450,0.68401428,144.52,144.48,4.71891517]
[1768457756874,0.68401428,144.52,144.48,0.70054773]
[1768457757275,0.68401428,144.52,144.48,4.71891517]
[1768457759253,0.68401428,144.52,144.49,0.70054773]
[1768457759453,0.68401428,144.52,144.49,4.71891517]
[1768457760162,0.68401428,144.52,144.49,0.70054773]
[1768457760669,0.68401428,144.52,144.49,4.71891517]
[1768457761552,0.1,144.54,144.5,0.70054773]
[1768457761752,0.78401428,144.54,144.51,4.71891517]
[1768457761948,0.78401428,144.54,144.51,0.70054773]
[1768457762569,0.78401428,144.54,144.51,4.71891517]
[1768457762884,0.1,144.54,144.52,4.71891517]
[1768457764458,0.1,144.54,144.52,4.01836744]
[1768457764659,0.1,144.54,144.51,0.70054773]
[1768457764862,0.1,144.54,144.53,0.70054773]
[1768457765372,0.1,144.55,144.53,4.71891517]
[1768457765576,0.1,144.55,144.53,0.70054773]
[1768457765755,0.1,144.55,144.53,4.71891517]
[1768457765951,0.1,144.55,144.52,6.91924552]
[1768457765952,0.78401428,144.6,144.55,0.38438234]
[1768457766176,0.68401428,144.59,144.55,4.40274978]
[1768457766353,0.68401428,144.59,144.55,0.38438234]
[1768457766559,0.68401428,144.59,144.55,4.40274978]
[1768457766964,0.68401428,144.59,144.54,0.38438234]
[1768457767157,0.68401428,144.58,144.54,0.38438234]
[1768457767477,0.68401428,144.58,144.54,4.40274978]
[1768457767671,0.68401428,144.58,144.55,10.93612506]
[1768457768364,0.68401428,144.58,144.55,6.91775762]
[1768457768566,0.68401428,144.58,144.55,10.93612506]
[1768457769281,0.68401428,144.58,144.55,6.91775762]
[1768457769686,0.68401428,144.58,144.57,4.01836744]
[1768457770378,0.68401428,144.58,144.55,6.91775762]
[1768457770571,0.68401428,144.58,144.57,4.01836744]
[1768457771278,0.68401428,144.58,144.55,6.91775762]
[1768457771477,0.68401428,144.58,144.57,4.01836744]
[1768457771659,0.68401428,144.58,144.57,3.98836744]
[1768457772982,0.68401428,144.58,144.55,6.91775762]
[1768457773176,0.68401428,144.58,144.55,4.01836744]
[1768457777793,0.68401428,144.58,144.54,4.01836744]
[1768457777794,0.68401428,144.57,144.54,4.01836744]
[1768457778005,0.68401428,144.57,144.55,4.01836744]
[1768457778292,7.01595723,144.6,144.57,4.01836744]
[1768457778496,7.01595723,144.6,144.57,3.991699]
[1768457778793,0.1,144.6,144.57,3.991699]
[1768457778995,0.1,144.6,144.59,4.01836744]
[1768457779172,0.1,144.62,144.6,4.01836744]
[1768457779367,0.1,144.64,144.61,4.01836744]
[1768457779579,0.1,144.64,144.62,4.01836744]
[1768457779772,0.1,144.65,144.63,4.01836744]
[1768457780114,103.1,144.68,144.64,4.01836744]
[1768457780397,103.1,144.68,144.66,3.98836744]
[1768457780398,0.5173632,144.68,144.66,3.98836744]
[1768457780572,0.5173632,144.68,144.64,7.37183176]
[1768457780971,0.5173632,144.68,144.66,4.01836744]
[1768457781478,0.5173632,144.68,144.64,0.45820427]
[1768457781996,0.5173632,144.68,144.66,4.01836744]
[1768457782469,0.5173632,144.68,144.64,0.45820427]
[1768457782783,0.69934273,144.67,144.64,4.01836744]
[1768457784090,0.69934273,144.66,144.63,4.01836744]
[1768457784386,0.69934273,144.66,144.62,4.01836744]
[1768457784892,0.69934273,144.65,144.6,0.69705985]
[1768457785082,0.69934273,144.62,144.57,17.31542729]
[1768457785288,0.69934273,144.62,144.58,4.71542729]
[1768457785486,0.69934273,144.61,144.57,4.01836744]
[1768457785673,0.69934273,144.61,144.56,0.69705985]
[1768457785674,0.69934273,144.6,144.56,0.69705985]
[1768457785876,4.71771017,144.6,144.56,0.69705985]
[1768457786072,0.69934273,144.57,144.52,45.13724736]
[1768457786279,0.69934273,144.57,144.54,4.01836744]
[1768457786791,0.69934273,144.58,144.54,4.71542729]
[1768457787596,0.69934273,144.57,144.52,45.13724736]
[1768457787801,4.71771017,144.57,144.53,0.69705985]
[1768457787983,0.69934273,144.55,144.52,44.44018751]
[1768457788295,6.9165986,144.58,144.54,0.69705985]
[1768457788501,0.69934273,144.59,144.55,4.01836744]
[1768457789305,0.69934273,144.59,144.55,0.69705985]
[1768457789486,0.69934273,144.59,144.56,4.01836744]
[1768457790200,13.29934273,144.61,144.57,4.71542729]
[1768457790390,0.69934273,144.61,144.58,4.01836744]
[1768457790578,7.61367215,144.63,144.6,4.01836744]
[1768457790784,7.61321154,144.64,144.61,4.01836744]
[1768457790991,0.69934273,144.63,144.59,0.69705985]
[1768457791195,0.69934273,144.63,144.59,4.71542729]
[1768457791986,0.69934273,144.63,144.6,4.01836744]
[1768457793004,0.69934273,144.64,144.61,4.01836744]
[1768457793707,7.61305998,144.64,144.61,4.01836744]
[1768457793997,7.61305998,144.64,144.6,0.69705985]
[1768457794298,7.61305998,144.64,144.6,4.71542729]
[1768457794678,7.61217911,144.66,144.62,4.71542729]
[1768457794884,7.61217911,144.66,144.63,4.01836744]
[1768457795303,6.91229833,144.67,144.64,4.01836744]
[1768457795598,7.61164106,144.67,144.64,4.01836744]
[1768457795985,4.81771017,144.69,144.64,4.71542729]
[1768457796186,0.79934273,144.69,144.64,4.71542729]
[1768457796398,0.69934273,144.67,144.63,4.71542729]
[1768457796902,0.69934273,144.67,144.64,4.01836744]
[1768457797102,0.69934273,144.67,144.63,4.71542729]
[1768457797300,0.69934273,144.66,144.61,0.69705985]
[1768457797605,0.69934273,144.63,144.59,4.71542729]
[1768457798305,6.91467293,144.62,144.59,4.71542729]
[1768457799404,7.61365198,144.63,144.59,4.71542729]
[1768457799908,6.91430925,144.63,144.6,0.69705985]
[1768457800408,7.61365198,144.63,144.59,4.01836744]
[1768457800707,0.69934273,144.62,144.58,0.69705985]
[1768457801006,0.69934273,144.62,144.58,4.71542729]
[1768457801607,7.61413743,144.62,144.58,4.71542729]
[1768457801809,11.63250487,144.62,144.58,0.69705985]
[1768457802110,7.61413743,144.62,144.58,0.69705985]
[1768457803112,11.63250487,144.62,144.58,0.69705985]
[1768457804010,0.69934273,144.61,144.58,0.69705985]
[1768457805485,7.61371268,144.63,144.59,0.69705985]
[1768457805689,11.63208012,144.63,144.59,0.69705985]
[1768457805892,0.69934273,144.62,144.58,4.71542729]
[1768457806100,0.69934273,144.62,144.58,0.69705985]
[1768457806604,4.71771017,144.62,144.57,4.71542729]
[1768457806913,0.69934273,144.61,144.57,4.71542729]
[1768457807105,0.69934273,144.61,144.57,0.69705985]
[1768457808013,0.69934273,144.61,144.57,4.71542729]
[1768457808186,6.91497873,144.62,144.58,0.69705985]
[1768457808583,7.61432146,144.62,144.58,0.69705985]
[1768457810590,7.61432146,144.62,144.59,0.70573359]
[1768457811087,0.70538545,144.65,144.61,0.70573359]
[1768457811296,0.70538545,144.65,144.62,0.70573359]
[1768457811508,24.89891869,144.67,144.62,0.70573359]
[1768457811688,7.61766857,144.67,144.63,4.72410103]
[1768457813499,0.70538545,144.66,144.62,4.72410103]
[1768457813812,0.70538545,144.66,144.63,0.70573359]
[1768457814311,0.70538545,144.66,144.62,4.72410103]
[1768457814799,6.91323885,144.65,144.62,0.70573359]
[1768457816691,0.70538545,144.64,144.6,0.70573359]
[1768457816912,0.70538545,144.64,144.6,4.72410103]
[1768457817210,0.70538545,144.64,144.61,0.70573359]
[1768457817412,7.6186243,144.65,144.61,0.70573359]
[1768457817603,7.6186243,144.65,144.61,3.27328674]
[1768457818313,7.6186243,144.65,144.61,0.70573359]
[1768457818522,0.70538545,144.64,144.6,2.56755315]
[1768457819295,26.76388913,144.65,144.57,0.70573359]
[1768457819296,0.70538545,144.62,144.57,0.70573359]
[1768457819495,3.2729386,144.62,144.57,0.70573359]
[1768457819798,0.70538545,144.61,144.57,3.27328674]
[1768457820003,0.70538545,144.61,144.57,0.70573359]
[1768457820220,9.48269896,144.62,144.57,10.19023995]
[1768457820397,15.8729386,144.65,144.6,0.70573359]
[1768457820816,15.8729386,144.65,144.6,3.27328674]
[1768457821119,0.70538545,144.64,144.6,3.27328674]
[1768457821315,0.70538545,144.64,144.6,0.70573359]
[1768457821492,0.70538545,144.63,144.58,3.27328674]
[1768457821693,0.70538545,144.62,144.58,0.70573359]
[1768457821917,0.70538545,144.62,144.58,3.27328674]
[1768457822625,7.62043282,144.62,144.58,0.70573359]
[1768457823415,0.70538545,144.61,144.57,3.27328674]
[1768457823591,0.70538545,144.61,144.57,0.70573359]
[1768457823913,0.70538545,144.61,144.57,3.27328674]
[1768457824220,0.70538545,144.61,144.58,0.70573359]
[1768457824396,7.62062663,144.61,144.58,0.70573359]
[1768457824712,7.62062663,144.61,144.54,3.27328674]
[1768457824713,0.70538545,144.58,144.54,3.27328674]
[1768457824919,0.70538545,144.6,144.56,0.70573359]
[1768457825422,0.70538545,144.6,144.56,3.27328674]
[1768457826724,7.62149306,144.59,144.56,0.70573359]
[1768457827025,7.62149306,144.59,144.54,0.70573359]
[1768457827225,7.62149306,144.59,144.55,3.27328674]
[1768457827524,6.91577963,144.6,144.56,3.27328674]
[1768457827925,6.91577963,144.6,144.56,0.70573359]
[1768457828425,7.62116508,144.6,144.56,0.70573359]
[1768457829007,7.62116508,144.6,144.56,3.27328674]
[1768457829209,0.70538545,144.61,144.57,0.70573359]
[1768457829527,0.70538545,144.64,144.6,0.70573359]
[1768457829706,0.70538545,144.64,144.58,0.70573359]
[1768457829905,0.70538545,144.64,144.59,3.27328674]
[1768457830335,2.56755315,144.63,144.59,0.70573359]
[1768457830509,0.70538545,144.62,144.59,0.70573359]
[1768457830707,7.620376,144.62,144.59,0.70573359]
[1768457832025,10.18792915,144.62,144.59,0.70573359]
[1768457833007,10.18792915,144.62,144.58,0.70573359]
[1768457833216,0.70538545,144.61,144.57,3.27328674]
[1768457833410,3.2729386,144.61,144.56,3.27328674]
[1768457833714,0.70538545,144.6,144.56,3.27328674]
[1768457833925,0.70538545,144.6,144.57,0.70573359]
[1768457834317,7.62136217,144.6,144.56,3.27328674]
[1768457834515,0.70538545,144.59,144.55,3.27328674]
[1768457835605,0.70538545,144.59,144.53,0.70573359]
[1768457835606,0.70538545,144.57,144.53,0.70573359]
[1768457835842,0.70538545,144.57,144.53,3.27328674]
[1768457836041,0.70538545,144.57,144.53,0.70573359]
[1768457836238,0.70538545,144.57,144.53,3.27328674]
[1768457837021,0.70538545,144.56,144.53,0.70573359]
[1768457837515,7.62326905,144.56,144.53,0.70573359]
[1768457837712,7.62326905,144.56,144.52,0.70573359]
[1768457837926,7.62326905,144.56,144.52,3.27328674]
[1768457839114,7.62326905,144.56,144.53,2.56755315]
[1768457839525,0.70538545,144.56,144.53,2.56755315]
[1768457839724,17.99489479,144.6,144.56,0.70573359]
[1768457839928,6.9162844,144.59,144.56,3.27328674]
[1768457840130,7.62119337,144.6,144.57,2.56755315]
[1768457840648,7.62119337,144.6,144.57,3.28730043]
[1768457840846,6.91548675,144.61,144.59,2.56755315]
[1768457841144,6.9148445,144.62,144.6,2.56755315]
[1768457842014,0.71774435,144.63,144.6,2.56755315]
[1768457842644,0.71774435,144.63,144.6,3.28730043]
[1768457843347,17.28443713,144.64,144.61,2.56755315]
[1768457843348,7.62596446,144.64,144.61,2.56755315]
[1768457844125,6.91339763,144.65,144.61,3.26801272]
[1768457844648,7.62564528,144.65,144.61,3.26801272]
[1768457845245,3.2798008,144.64,144.59,0.70045957]
[1768457845422,0.71224765,144.63,144.6,2.56755315]
[1768457845741,0.71224765,144.64,144.6,3.26801272]
[1768457845954,2.56755315,144.66,144.63,0.70045957]
[1768457845955,6.9128749,144.66,144.63,0.70045957]
[1768457846126,6.9128749,144.66,144.63,0.67045957]
[1768457846325,7.62512255,144.66,144.62,2.56755315]
[1768457846828,27.47457809,144.66,144.61,2.56755315]
[1768457847137,24.90702494,144.66,144.62,2.56755315]
[1768457848220,7.62512255,144.66,144.63,2.56755315]
[1768457848422,6.9128749,144.66,144.63,3.26801272]
[1768457848724,7.62512255,144.66,144.63,3.26801272]
[1768457849336,7.62512255,144.66,144.63,2.56755315]
[1768457849731,7.62512255,144.66,144.6,6.91533377]
[1768457849732,6.91237004,144.67,144.64,3.26801272]
[1768457850331,7.62461769,144.67,144.64,0.70045957]
[1768457850935,6.91237004,144.67,144.64,0.70045957]
[1768457851130,7.62461769,144.67,144.63,0.70045957]
[1768457851454,0.71224765,144.66,144.62,3.26801272]
[1768457851631,7.62524197,144.66,144.62,3.26801272]
[1768457851831,7.62524197,144.66,144.63,0.70045957]
[1768457852848,10.19279512,144.66,144.61,3.26801272]
[1768457853028,0.71224765,144.65,144.61,0.70045957]
[1768457853344,0.71224765,144.65,144.61,3.26801272]
[1768457853549,0.71224765,144.65,144.61,2.56755315]
[1768457854146,0.71224765,144.65,144.62,0.70045957]
[1768457854326,7.62524197,144.66,144.62,0.70045957]
[1768457856643,10.19279512,144.66,144.62,0.70045957]
[1768457857037,7.62524197,144.66,144.62,0.70045957]
[1768457857236,10.19279512,144.66,144.62,0.70045957]
[1768457861437,7.62524197,144.66,144.62,0.70045957]
[1768457861642,10.19279512,144.66,144.62,0.70045957]
[1768457862050,27.47469751,144.66,144.62,0.70045957]
[1768457863535,24.90714436,144.66,144.62,0.70045957]
[1768457863743,10.19279512,144.66,144.62,0.70045957]
[1768457864157,7.62524197,144.66,144.62,0.70045957]
[1768457864543,7.62466837,144.67,144.63,3.26801272]
[1768457864743,0.71224765,144.67,144.64,0.70045957]
[1768457865059,123.32423818,144.68,144.64,0.70045957]
[1768457865265,6.91199053,144.68,144.65,0.70045957]
[1768457865563,7.62423818,144.68,144.65,0.70045957]
[1768457867568,7.62423818,144.68,144.64,0.70045957]
[1768457868641,0.71224765,144.67,144.64,0.70045957]
[1768457868843,3.2798008,144.67,144.64,0.70045957]
[1768457869548,0.71224765,144.67,144.64,0.70045957]
[1768457870666,10.19236235,144.67,144.64,0.70045957]
[1768457873062,3.28351655,144.65,144.61,0.71780184]
[1768457873657,3.28351655,144.65,144.6,0.71780184]
[1768457873658,0.7159634,144.64,144.6,0.71780184]
[1768457873860,0.7159634,144.64,144.61,0.71780184]
[1768457874149,10.19697209,144.65,144.61,0.71780184]
[1768457877463,0.7159634,144.65,144.62,0.71780184]
[1768457877670,6.91291451,144.66,144.63,0.71780184]
[1768457877966,13.3159634,144.67,144.64,0.71780184]
[1768457878169,24.24020802,144.67,144.64,0.71780184]
[1768457879268,11.64020802,144.67,144.64,0.71780184]
[1768457880175,4.0117547,144.66,144.63,0.71780184]
[1768457880472,28.92091583,144.67,144.63,0.71780184]
[1768457880973,0.7159634,144.66,144.63,0.71780184]
[1768457881362,0.7159634,144.65,144.61,4.72955654]
[1768457881571,4.0117547,144.65,144.61,0.71780184]
[1768457882245,4.7277181,144.65,144.61,0.71780184]
[1768457883071,11.64132377,144.65,144.61,0.71780184]
[1768457887572,0.7159634,144.65,144.61,4.72955654]
[1768457887882,11.63952346,144.68,144.64,0.71780184]
[1768457888679,0.7159634,144.66,144.62,0.71780184]
[1768457889059,24.19131876,144.68,144.62,0.71780184]
[1768457889264,0.8159634,144.69,144.66,0.71780184]
[1768457889463,7.72733085,144.69,144.66,0.71780184]
[1768457889801,0.8159634,144.69,144.66,0.71780184]
[1768457890094,7.72737281,144.69,144.66,0.71780184]
[1768457893092,11.73912751,144.69,144.65,0.71780184]
[1768457893293,0.7159634,144.67,144.63,4.72955654]
[1768457893675,0.7159634,144.67,144.64,0.71780184]
[1768457894267,7.6283142,144.67,144.64,0.71780184]
[1768457895592,0.7159634,144.67,144.64,0.71780184]
[1768457895779,7.6279563,144.68,144.65,0.71780184]
[1768457897883,7.6279563,144.68,144.64,0.71780184]
[1768457898094,0.7159634,144.65,144.61,0.71780184]
[1768457898271,0.7159634,144.65,144.62,0.71780184]
[1768457898468,0.8159634,144.69,144.65,0.71780184]
[1768457898674,7.72757448,144.69,144.65,0.71780184]
[1768457899379,0.7159634,144.68,144.65,0.71780184]
[1768457900201,7.01161108,144.69,144.66,0.71780184]
[1768457900202,0.1,144.69,144.66,0.71780184]
[1768457900903,7.66743908,144.69,144.66,0.71780184]
[1768457902927,11.67919378,144.69,144.66,0.71780184]
[1768457903225,11.67919378,144.69,144.65,0.70413613]
[1768457903916,11.67919378,144.69,144.64,0.70413613]
[1768457903917,4.73386623,144.68,144.64,0.70413613]
[1768457904498,0.72211153,144.67,144.64,0.70413613]
[1768457904704,4.73386623,144.67,144.64,0.70413613]
[1768457906013,11.64633861,144.67,144.63,13.30413613]
[1768457906214,4.73386623,144.66,144.63,0.70413613]
[1768457906520,4.0117547,144.65,144.62,0.70413613]
[1768457906717,0.72211153,144.66,144.62,4.71589083]
[1768457906907,0.72211153,144.66,144.63,0.70413613]
[1768457908304,7.63494034,144.66,144.63,0.70413613]
[1768457909735,11.64669504,144.66,144.63,0.70413613]
[1768457910309,7.63494034,144.66,144.63,0.70413613]
[1768457911030,0.72211153,144.65,144.61,4.71589083]
[1768457911227,0.72211153,144.65,144.6,6.9156258]
[1768457911228,4.73386623,144.64,144.6,0.70413613]
[1768457911634,11.64768583,144.64,144.6,0.70413613]
[1768457912006,7.63593113,144.64,144.6,0.70413613]
[1768457912206,7.63581641,144.65,144.61,0.70413613]
[1768457912601,11.64757111,144.65,144.61,0.70413613]
[1768457913005,0.72211153,144.64,144.61,0.70413613]
[1768457913320,4.73386623,144.64,144.61,0.70413613]
[1768457913520,4.0117547,144.64,144.61,0.70413613]
[1768457913733,4.73386623,144.64,144.61,0.70413613]
[1768457913922,7.63581641,144.65,144.61,0.70413613]
[1768457914122,11.64757111,144.65,144.61,0.70413613]
[1768457916642,11.64757111,144.65,144.58,12.6]
[1768457916643,0.72211153,144.64,144.59,0.70413613]
[1768457916826,4.0117547,144.63,144.59,0.70413613]
[1768457917024,4.73386623,144.64,144.6,0.70413613]
[1768457918332,0.72211153,144.63,144.6,0.70413613]
[1768457920160,7.6363295,144.63,144.6,0.70413613]
[1768457920545,6.91421797,144.63,144.6,0.70413613]
[1768457921931,7.63601537,144.64,144.6,0.70413613]
[1768457922138,7.63601537,144.64,144.6,4.71589083]
[1768457923048,7.63601537,144.64,144.61,4.71589083]
[1768457923049,0.72211153,144.64,144.61,4.71589083]
[1768457923246,6.91340819,144.65,144.62,4.71589083]
[1768457923456,6.91340819,144.65,144.63,0.70413613]
[1768457923849,6.91340819,144.65,144.62,0.70413613]